bitfinex/quotes_BTCUSD_20240729
["timestamp","ask_amount","ask_price","bid_price","bid_amount"]
[1722214483337,1.65307583,69006.0,69005.0,0.69996347]
[1722214483652,1.67607583,69006.0,69005.0,0.69996347]
[1722214483848,1.75857583,69006.0,69005.0,0.69996347]
[1722214484085,3.27751749,69006.0,69005.0,0.69996347]
[1722214484486,3.82952249,69006.0,69005.0,0.62296347]
[1722214485423,3.77323682,69006.0,69005.0,0.62296347]
[1722214485618,3.82893883,69006.0,69005.0,0.62296347]
[1722214485939,3.48561083,69006.0,69005.0,0.62296347]
[1722214486146,3.45536883,69006.0,69005.0,0.62296347]
[1722214487164,3.38760883,69006.0,69005.0,0.62296347]
[1722214487360,3.33190682,69006.0,69005.0,0.62296347]
[1722214487665,3.38788978,69006.0,69005.0,0.62296347]
[1722214487887,3.40307347,69006.0,69005.0,0.62296347]
[1722214488427,3.15657147,69006.0,69005.0,0.62296347]
[1722214490283,3.28301571,69006.0,69005.0,0.62296347]
[1722214490641,3.28301571,69006.0,69005.0,0.57586565]
[1722214490748,3.15686607,69006.0,69005.0,0.57586565]
[1722214491208,3.10058851,69006.0,69005.0,0.57586565]
[1722214491410,3.15686324,69006.0,69005.0,0.57586565]
[1722214493243,2.78403287,69006.0,69005.0,0.57586565]
[1722214493418,2.70275887,69006.0,69005.0,0.57586565]
[1722214493619,2.57025887,69006.0,69005.0,0.57586565]
[1722214493882,2.65275614,69006.0,69005.0,0.57586565]
[1722214494238,2.25536414,69006.0,69005.0,0.65706565]
[1722214494592,1.72003714,69006.0,69005.0,0.65706565]
[1722214494927,1.80253714,69006.0,69005.0,0.65706565]
[1722214496573,1.72003714,69006.0,69005.0,0.65706565]
[1722214496730,1.80253714,69006.0,69005.0,0.65706565]
[1722214497160,1.80317624,69006.0,69005.0,0.65706565]
[1722214498031,1.76798524,69006.0,69005.0,0.65706565]
[1722214500327,1.71119551,69006.0,69005.0,0.65706565]
[1722214500528,1.69798984,69006.0,69005.0,0.65706565]
[1722214500682,1.74376212,69006.0,69005.0,0.65706565]
[1722214501037,1.65599918,69006.0,69005.0,0.65706565]
[1722214501744,1.57349918,69006.0,69005.0,0.65706565]
[1722214501951,0.86624918,69006.0,69005.0,0.65706565]
[1722214502159,0.84324918,69006.0,69005.0,0.65706565]
[1722214502645,0.84368627,69006.0,69005.0,0.65706565]
[1722214503049,0.82968627,69006.0,69005.0,0.65706565]
[1722214504508,0.84368627,69006.0,69005.0,0.65706565]
[1722214504898,0.82968627,69006.0,69005.0,0.65706565]
[1722214505233,0.83768627,69006.0,69005.0,0.65706565]
[1722214505437,1.15204927,69006.0,69005.0,0.65706565]
[1722214505661,1.33654227,69006.0,69005.0,0.57586565]
[1722214508937,1.33431899,69006.0,69005.0,0.57586565]
[1722214509219,1.25181899,69006.0,69005.0,0.57586565]
[1722214509836,1.31096599,69006.0,69005.0,0.57586565]
[1722214510033,1.24220399,69006.0,69005.0,0.57586565]
[1722214510957,1.24074899,69006.0,69005.0,0.57586565]
[1722214511163,1.09032599,69006.0,69005.0,0.57586565]
[1722214511367,1.23574899,69006.0,69005.0,0.65196565]
[1722214511983,1.23675631,69006.0,69005.0,0.65196565]
[1722214512367,1.2259423,69006.0,69005.0,0.65196565]
[1722214512565,1.23644633,69006.0,69005.0,0.65196565]
[1722214518487,1.23636995,69006.0,69005.0,0.65196565]
[1722214521730,1.23633415,69006.0,69005.0,0.65196565]
[1722214522295,1.23633417,69006.0,69005.0,0.65196565]
[1722214522913,1.23633417,69006.0,69005.0,0.57586565]
[1722214523115,1.24511565,69006.0,69005.0,0.57586565]
[1722214524854,1.24533825,69006.0,69005.0,0.57586565]
[1722214528131,1.18933299,69006.0,69005.0,0.57586565]
[1722214528328,1.24512179,69006.0,69005.0,0.57586565]
[1722214530371,2.48553779,69006.0,69005.0,0.57586565]
[1722214531201,2.22553779,69006.0,69005.0,0.57586565]
[1722214531605,2.18945065,69006.0,69005.0,0.57586565]
[1722214531985,2.18145223,69006.0,69005.0,0.57586565]
[1722214532539,1.99843823,69006.0,69005.0,0.57586565]
[1722214532648,1.72718623,69006.0,69005.0,0.57586565]
[1722214532852,1.71318623,69006.0,69005.0,0.57586565]
[1722214533047,1.72618623,69006.0,69005.0,0.57586565]
[1722214533465,1.71359481,69006.0,69005.0,0.57586565]
[1722214533667,1.72618623,69006.0,69005.0,0.57586565]
[1722214534551,1.95860441,69006.0,69005.0,0.57586565]
[1722214534752,1.72674141,69006.0,69005.0,0.57586565]
[1722214534974,2.18450441,69006.0,69005.0,0.57586565]
[1722214535170,2.18450441,69006.0,69005.0,0.51276565]
[1722214535655,2.26700441,69006.0,69005.0,0.51276565]
[1722214537120,2.8739972,69006.0,69005.0,0.36785065]
[1722214537441,2.8739972,69006.0,69005.0,0.33886765]
[1722214537829,3.02781062,69006.0,69005.0,0.33886765]
[1722214538035,3.18454383,69006.0,69005.0,0.26102319]
[1722214538249,3.18454383,69006.0,69005.0,0.11610819]
[1722214538413,3.18454383,69006.0,69005.0,0.40593819]
[1722214538594,3.17154383,69006.0,69005.0,0.40593819]
[1722214539184,3.17154383,69006.0,69005.0,0.26102319]
[1722214539402,3.19431131,69006.0,69005.0,0.55085319]
[1722214539804,3.20831131,69006.0,69005.0,0.55085319]
[1722214540086,3.20831131,69006.0,69005.0,0.52187019]
[1722214540283,3.19431131,69006.0,69005.0,0.40593819]
[1722214540759,1.71967942,68993.0,68992.0,0.000924]
[1722214540962,0.81147242,68989.0,68988.0,0.35534556]
[1722214541207,1.04339342,68989.0,68988.0,0.00908612]
[1722214541402,1.04339342,68989.0,68966.0,0.0603]
[1722214541403,0.74354342,68971.0,68966.0,0.0603]
[1722214541630,5.47366405,68971.0,68970.0,0.298956]
[1722214541918,6.45923005,68971.0,68970.0,0.298956]
[1722214542053,6.48223005,68971.0,68970.0,0.298956]
[1722214543295,6.60633005,68971.0,68970.0,0.298956]
[1722214543514,6.70633005,68971.0,68970.0,0.298956]
[1722214543691,7.00633005,68971.0,68970.0,0.298956]
[1722214543887,7.00633005,68971.0,68970.0,0.588936]
[1722214543888,7.31881105,68971.0,68970.0,0.588936]
[1722214544067,7.33324387,68971.0,68970.0,0.414948]
[1722214544270,7.33324387,68971.0,68970.0,0.356952]
[1722214544693,7.31924387,68971.0,68970.0,0.327954]
[1722214544911,7.33324387,68971.0,68970.0,0.327954]
[1722214545130,7.33324387,68971.0,68970.0,0.298956]
[1722214545709,7.25371125,68971.0,68970.0,0.24096]
[1722214545913,7.33325375,68971.0,68970.0,0.182964]
[1722214546311,7.33325375,68971.0,68970.0,0.414948]
[1722214546541,7.33325375,68971.0,68970.0,0.356952]
[1722214546719,6.95991209,68971.0,68970.0,0.327954]
[1722214547350,6.88905793,68971.0,68970.0,0.327954]
[1722214547570,6.76213603,68971.0,68970.0,0.327954]
[1722214547777,6.78491409,68971.0,68970.0,0.327954]
[1722214547984,6.90811911,68971.0,68970.0,0.327954]
[1722214548521,6.76213603,68971.0,68970.0,0.327954]
[1722214550603,6.76244116,68971.0,68970.0,0.327954]
[1722214551001,6.70523551,68971.0,68970.0,0.327954]
[1722214551165,6.78517736,68971.0,68970.0,0.327954]
[1722214551359,9.36775536,68971.0,68970.0,0.327954]
[1722214551975,9.57435536,68971.0,68970.0,0.327954]
[1722214552366,9.57435536,68971.0,68970.0,0.211962]
[1722214552623,9.57435536,68971.0,68970.0,0.472944]
[1722214553177,9.3470274,68971.0,68970.0,0.30517626]
[1722214553853,9.34701541,68971.0,68970.0,0.30517626]
[1722214554456,9.34701541,68971.0,68970.0,0.18918426]
[1722214555453,9.47647155,68971.0,68970.0,0.13118826]
[1722214555880,9.47647155,68971.0,68970.0,0.39217026]
[1722214556079,9.47647155,68971.0,68970.0,0.36317226]
[1722214556492,7.67234341,68971.0,68970.0,0.36317226]
[1722214556660,5.89550741,68971.0,68970.0,0.36317226]
[1722214556876,5.91069859,68971.0,68970.0,0.34039436]
[1722214557421,8.01620659,68971.0,68970.0,0.34039436]
[1722214557707,7.80773859,68971.0,68970.0,0.34039436]
[1722214559587,7.74514717,68971.0,68970.0,0.34039436]
[1722214560201,7.80729629,68971.0,68970.0,0.34039436]
[1722214560582,7.29761429,68971.0,68970.0,0.34039436]
[1722214560792,6.18871929,68971.0,68970.0,0.34039436]
[1722214560988,6.48871929,68971.0,68970.0,0.34039436]
[1722214561358,6.76411929,68971.0,68970.0,0.34039436]
[1722214561768,6.76664992,68971.0,68970.0,0.34039436]
[1722214562384,6.76622463,68971.0,68970.0,0.34039436]
[1722214562747,6.82441263,68971.0,68970.0,0.34039436]
[1722214563194,6.70041263,68971.0,68970.0,0.34039436]
[1722214565193,6.46843163,68971.0,68970.0,0.34039436]
[1722214565391,6.40820787,68971.0,68970.0,0.34039436]
[1722214565611,6.10820787,68971.0,68970.0,0.34039436]
[1722214566015,6.23432216,68971.0,68970.0,0.34039436]
[1722214566226,5.3407673,68971.0,68970.0,0.34039436]
[1722214566500,5.4407673,68971.0,68970.0,0.34039436]
[1722214566732,5.4407673,68971.0,68970.0,0.34131836]
[1722214567091,5.4416073,68971.0,68970.0,0.34131836]
[1722214567288,5.0096263,68971.0,68970.0,0.40761836]
[1722214567542,3.0058463,68971.0,68970.0,0.48601836]
[1722214567793,2.96233201,68971.0,68970.0,0.48601836]
[1722214567948,2.96233201,68971.0,68970.0,0.40761836]
[1722214568147,3.06233201,68971.0,68970.0,0.40761836]
[1722214568399,3.29431301,68971.0,68970.0,0.40761836]
[1722214568602,3.29454252,68971.0,68970.0,0.40761836]
[1722214568776,3.42395354,68971.0,68970.0,0.40761836]
[1722214569224,3.29454252,68971.0,68970.0,0.40761836]
[1722214569377,3.45134031,68971.0,68970.0,0.34131836]
[1722214570210,3.45143745,68971.0,68970.0,0.34131836]
[1722214570902,8.84803945,68971.0,68970.0,0.34131836]
[1722214571304,8.76543945,68971.0,68970.0,0.34131836]
[1722214571868,8.89134327,68971.0,68970.0,0.34131836]
[1722214572072,9.03696539,68971.0,68970.0,0.34131836]
[1722214572254,8.89134327,68971.0,68970.0,0.34131836]
[1722214572408,9.03744061,68971.0,68970.0,0.34131836]
[1722214572825,8.8916825,68971.0,68970.0,0.34131836]
[1722214573039,9.2053635,68971.0,68970.0,0.19632836]
[1722214573238,9.2053635,68971.0,68970.0,0.05133436]
[1722214573590,9.18258682,68971.0,68970.0,0.05133436]
[1722214573790,9.05647253,68971.0,68970.0,0.05133436]
[1722214573985,9.05647253,68971.0,68970.0,0.34131436]
[1722214574422,8.92232665,68971.0,68970.0,0.22532236]
[1722214574626,8.92156144,68971.0,68970.0,0.48630436]
[1722214574836,8.84344125,68971.0,68970.0,0.48630436]
[1722214575041,8.92154693,68971.0,68970.0,0.48630436]
[1722214575252,8.92154693,68971.0,68970.0,0.37031236]
[1722214575461,8.92154693,68971.0,68970.0,0.34131436]
[1722214576274,8.92154693,68971.0,68970.0,0.22532236]
[1722214576481,8.94432475,68971.0,68970.0,0.19632436]
[1722214576721,8.94432475,68971.0,68970.0,0.16614425]
[1722214577074,8.94432475,68971.0,68970.0,0.13714625]
[1722214577277,8.94432475,68971.0,68970.0,0.02115225]
[1722214577689,8.92914106,68971.0,68970.0,0.02115225]
[1722214578103,1.73852542,68969.0,68968.0,2.5e-07]
[1722214578334,0.71159842,68964.0,68963.0,2.5e-07]
[1722214578549,0.71159842,68964.0,68961.0,0.002]
[1722214578550,1.04361842,68962.0,68961.0,2.5e-07]
[1722214578791,2.12339176,68962.0,68961.0,2.5e-07]
[1722214578940,2.35540276,68962.0,68961.0,2.5e-07]
[1722214579146,2.37840276,68962.0,68961.0,2.5e-07]
[1722214579550,2.52433425,68962.0,68961.0,2.5e-07]
[1722214579952,2.37840276,68962.0,68961.0,2.5e-07]
[1722214580836,2.52469241,68962.0,68961.0,2.5e-07]
[1722214581049,2.53340146,68962.0,68961.0,0.29002025]
[1722214581249,2.38649666,68962.0,68961.0,0.29002025]
[1722214581640,8.37376947,68962.0,68961.0,0.29002025]
[1722214581840,8.65227025,68962.0,68961.0,0.29002025]
[1722214582041,8.59604622,68962.0,68961.0,0.29002025]
[1722214582416,8.56113322,68962.0,68961.0,0.29002025]
[1722214582956,8.52865622,68962.0,68961.0,0.29002025]
[1722214583760,8.30315622,68962.0,68961.0,0.29002025]
[1722214584053,8.12625222,68962.0,68961.0,0.29002025]
[1722214584261,8.04971644,68962.0,68961.0,0.29002025]
[1722214584491,8.12560802,68962.0,68961.0,0.29002025]
[1722214585326,8.14839042,68962.0,68961.0,0.29002025]
[1722214586202,8.12560802,68962.0,68961.0,0.29002025]
[1722214586549,8.00802502,68962.0,68961.0,0.35072025]
[1722214586891,8.20509633,68962.0,68961.0,0.35072025]
[1722214587267,8.11477052,68962.0,68961.0,0.29271625]
[1722214587470,8.11456032,68962.0,68961.0,0.29271625]
[1722214587844,8.12974401,68962.0,68961.0,0.29271625]
[1722214589032,8.1297647,68962.0,68961.0,0.29271625]
[1722214590652,8.0748703,68962.0,68961.0,0.29271625]
[1722214590854,8.12991122,68962.0,68961.0,0.29271625]
[1722214591261,8.20651884,68962.0,68961.0,0.08700625]
[1722214592842,8.08289865,68962.0,68961.0,0.08700625]
[1722214593259,8.08289865,68962.0,68961.0,2.5e-07]
[1722214593260,8.08258246,68962.0,68961.0,2.5e-07]
[1722214593587,1.43970642,68959.0,68958.0,0.04749609]
[1722214593803,2.01874808,68959.0,68958.0,0.33752609]
[1722214593954,9.31156198,68959.0,68958.0,0.33752609]
[1722214594154,2.09428098,68959.0,68958.0,0.33752609]
[1722214594376,2.32630198,68959.0,68958.0,0.19251109]
[1722214594891,8.46757598,68959.0,68958.0,0.19251109]
[1722214595459,8.46757598,68959.0,68958.0,0.26831109]
[1722214595660,7.30365798,68959.0,68958.0,0.26831109]
[1722214596385,6.87399798,68959.0,68958.0,0.26831109]
[1722214596586,6.71655498,68959.0,68958.0,0.26831109]
[1722214597346,6.71655498,68959.0,68958.0,0.33041109]
[1722214597547,7.01655498,68959.0,68958.0,0.33041109]
[1722214597726,6.71655498,68959.0,68958.0,0.33041109]
[1722214597923,6.48453398,68959.0,68958.0,0.33041109]
[1722214598328,6.48453398,68959.0,68958.0,0.25461109]
[1722214598735,6.78453398,68959.0,68958.0,0.25461109]
[1722214598937,6.41119232,68959.0,68958.0,0.25461109]
[1722214600468,6.01188657,68959.0,68958.0,0.25553509]
[1722214600681,2.97046357,68959.0,68958.0,0.33583509]
[1722214600893,2.39595342,68959.0,68958.0,0.33583509]
[1722214601078,1.62461198,68959.0,68958.0,0.33583509]
[1722214601282,1.29396598,68959.0,68958.0,0.33583509]
[1722214601437,1.04889098,68959.0,68958.0,0.33583509]
[1722214602885,1.03629956,68959.0,68958.0,0.33583509]
[1722214603119,1.14889098,68959.0,68958.0,0.33583509]
[1722214603304,1.38091198,68959.0,68958.0,0.33583509]
[1722214603524,1.40391198,68959.0,68958.0,0.33583509]
[1722214603665,1.17087639,68959.0,68958.0,0.33583509]
[1722214604413,1.40289739,68959.0,68958.0,0.33583509]
[1722214604581,1.40289739,68959.0,68958.0,0.62586509]
[1722214605187,1.55289739,68959.0,68958.0,0.54556509]
[1722214605366,1.45289739,68959.0,68958.0,0.54556509]
[1722214605599,1.47567584,68959.0,68958.0,0.54556509]
[1722214605801,1.45289739,68959.0,68958.0,0.54556509]
[1722214606005,1.40264876,68959.0,68958.0,0.54556509]
[1722214606374,1.45264876,68959.0,68958.0,0.54556509]
[1722214606964,1.45286555,68959.0,68958.0,0.54556509]
[1722214607198,1.40286555,68959.0,68958.0,0.54556509]
[1722214607775,1.40286555,68959.0,68958.0,0.62056509]
[1722214609115,1.42564355,68959.0,68958.0,0.62056509]
[1722214609326,1.40286555,68959.0,68958.0,0.62056509]
[1722214610047,1.32765642,68959.0,68958.0,0.62056509]
[1722214610229,1.4032592,68959.0,68958.0,0.54556509]
[1722214610648,1.40345233,68959.0,68958.0,0.54556509]
[1722214611272,1.45345233,68959.0,68958.0,0.54556509]
[1722214612653,1.47623143,68959.0,68958.0,0.54556509]
[1722214614017,1.49086091,68959.0,68958.0,0.54556509]
[1722214614416,1.30648133,68959.0,68958.0,0.54556509]
[1722214614616,6.31685005,68959.0,68958.0,0.54556509]
[1722214615028,6.43986929,68959.0,68958.0,0.54556509]
[1722214615432,6.39206787,68959.0,68958.0,0.54556509]
[1722214615612,6.45465929,68959.0,68958.0,0.54556509]
[1722214615814,6.35465929,68959.0,68958.0,0.54556509]
[1722214615998,6.53075929,68959.0,68958.0,0.48346509]
[1722214616198,6.55353909,68959.0,68958.0,0.31840524]
[1722214616484,6.40948664,68959.0,68958.0,0.31840524]
[1722214617350,6.26689146,68959.0,68958.0,0.31840524]
[1722214617714,6.56689146,68959.0,68958.0,0.31840524]
[1722214619780,6.50196437,68959.0,68958.0,0.31840524]
[1722214619936,6.56722148,68959.0,68958.0,0.31840524]
[1722214620321,6.56722171,68959.0,68958.0,0.31840524]
[1722214621171,6.56722171,68959.0,68958.0,0.17339024]
[1722214621172,6.77372171,68959.0,68958.0,0.17339024]
[1722214621401,6.56722171,68959.0,68958.0,0.17339024]
[1722214621606,6.83502171,68959.0,68958.0,0.17339024]
[1722214621757,7.06704271,68959.0,68958.0,0.46342024]
[1722214622290,7.06704271,68959.0,68958.0,0.43441724]
[1722214622499,7.06704271,68959.0,68958.0,0.37641124]
[1722214622718,6.94299838,68959.0,68958.0,0.34740824]
[1722214622893,6.94299838,68959.0,68958.0,0.31840524]
[1722214623091,6.96577918,68959.0,68958.0,0.31840524]
[1722214624282,6.96577918,68959.0,68958.0,0.26039924]
[1722214624482,6.96577918,68959.0,68958.0,0.17339024]
[1722214624483,7.11883749,68959.0,68958.0,0.17339024]
[1722214625049,6.83922184,68959.0,68958.0,0.17339024]
[1722214625243,6.90410007,68959.0,68958.0,0.05737824]
[1722214626787,1.77079942,68956.0,68955.0,2.4e-07]
[1722214626990,2.72433248,68956.0,68955.0,2.4e-07]
[1722214627192,2.72433248,68956.0,68955.0,0.23203224]
[1722214627392,2.72433248,68956.0,68955.0,0.15124249]
[1722214627547,2.72433248,68956.0,68955.0,0.12223849]
[1722214627749,9.20732548,68956.0,68955.0,0.12223849]
[1722214628225,2.35099082,68956.0,68955.0,0.03522649]
[1722214628430,2.35066048,68956.0,68955.0,4.9e-07]
[1722214628604,8.16885948,68956.0,68955.0,4.9e-07]
[1722214628809,2.35066048,68956.0,68955.0,4.9e-07]
[1722214629213,1.77083842,68954.0,68953.0,4.9e-07]
[1722214629422,1.96082648,68954.0,68953.0,4.9e-07]
[1722214629623,1.95938631,68954.0,68953.0,0.17403049]
[1722214629809,1.97710121,68954.0,68953.0,0.17403049]
[1722214630209,7.97076009,68954.0,68953.0,0.17403049]
[1722214630413,7.96970664,68954.0,68953.0,0.17403049]
[1722214630775,7.77820724,68954.0,68953.0,0.08701549]
[1722214630978,7.60993124,68954.0,68953.0,0.02900549]
[1722214631567,7.59922824,68954.0,68953.0,4.9e-07]
[1722214631744,7.59857155,68954.0,68953.0,4.9e-07]
[1722214631916,1.99922655,68954.0,68953.0,4.9e-07]
[1722214632112,1.93533535,68954.0,68953.0,4.9e-07]
[1722214632450,1.93533535,68954.0,68949.0,4.9e-07]
[1722214632451,0.51166942,68950.0,68949.0,4.9e-07]
[1722214632613,1.25547192,68950.0,68949.0,4.9e-07]
[1722214633000,1.75882062,68950.0,68949.0,0.29007049]
[1722214633161,1.85882062,68950.0,68949.0,0.29007049]
[1722214633548,6.97258962,68950.0,68949.0,0.29007049]
[1722214633971,7.11878962,68950.0,68949.0,0.14503549]
[1722214634220,7.34675862,68950.0,68949.0,0.05801449]
[1722214634421,7.34675862,68950.0,68949.0,4.9e-07]
[1722214634538,1.93862062,68950.0,68949.0,4.9e-07]
[1722214634736,2.08122942,68950.0,68949.0,4.9e-07]
[1722214635049,2.143965,68950.0,68949.0,4.9e-07]
[1722214635454,2.3581617,68950.0,68949.0,4.9e-07]
[1722214635660,2.143965,68950.0,68949.0,4.9e-07]
[1722214636799,2.17110442,68942.0,68941.0,4.9e-07]
[1722214637020,3.79709483,68942.0,68941.0,0.26109049]
[1722214637199,4.01128182,68942.0,68941.0,0.26109049]
[1722214637400,3.79709483,68942.0,68941.0,0.26109049]
[1722214637690,9.24956203,68942.0,68941.0,0.11604049]
[1722214637891,9.28295083,68942.0,68941.0,0.11604049]
[1722214638095,9.28117613,68942.0,68941.0,0.11604049]
[1722214638347,8.97058068,68942.0,68941.0,4.9e-07]
[1722214638546,8.80468868,68942.0,68941.0,4.9e-07]
[1722214638717,3.81810668,68942.0,68941.0,4.9e-07]
[1722214638920,3.79532013,68942.0,68941.0,4.9e-07]
[1722214639059,4.00950712,68942.0,68941.0,4.9e-07]
[1722214639257,4.00950712,68942.0,68935.0,4.9e-07]
[1722214639258,1.74823442,68936.0,68935.0,4.9e-07]
[1722214639521,2.1156953,68936.0,68935.0,0.17407849]
[1722214639930,2.1386953,68936.0,68935.0,0.17407849]
[1722214640070,2.0626953,68936.0,68935.0,0.17407849]
[1722214640268,2.0626953,68936.0,68935.0,0.23927849]
[1722214640269,1.8561953,68936.0,68935.0,0.23927849]
[1722214640461,1.7561953,68936.0,68935.0,0.23927849]
[1722214640666,1.8561953,68936.0,68935.0,0.23927849]
[1722214640910,6.6344975,68936.0,68935.0,0.23927849]
[1722214641111,6.63363765,68936.0,68935.0,0.23927849]
[1722214641704,6.42932534,68936.0,68935.0,0.23927849]
[1722214641905,6.21522634,68936.0,68935.0,0.23927849]
[1722214642130,6.26756489,68936.0,68935.0,0.23927849]
[1722214642292,6.16756489,68936.0,68935.0,0.23927849]
[1722214642492,5.66472289,68936.0,68935.0,0.23927849]
[1722214642934,4.86818589,68936.0,68935.0,0.23927849]
[1722214643251,4.84539734,68936.0,68935.0,0.23927849]
[1722214643641,4.74539734,68936.0,68935.0,0.23927849]
[1722214643840,4.84539734,68936.0,68935.0,0.23927849]
[1722214644248,3.35062034,68936.0,68935.0,0.23927849]
[1722214644594,3.35057084,68936.0,68935.0,0.23927849]
[1722214645150,3.3657577,68936.0,68935.0,0.23927849]
[1722214646653,3.38854508,68936.0,68935.0,0.23927849]
[1722214647689,3.3523201,68936.0,68935.0,0.23927849]
[1722214647896,3.36569975,68936.0,68935.0,0.23927849]
[1722214648090,3.31569975,68936.0,68935.0,0.23927849]
[1722214648350,3.31569975,68936.0,68935.0,0.31677849]
[1722214648351,2.53635175,68936.0,68935.0,0.31677849]
[1722214649553,2.66461545,68936.0,68935.0,0.31677849]
[1722214650157,2.66714465,68936.0,68935.0,0.31677849]
[1722214650711,2.68993155,68936.0,68935.0,0.31677849]
[1722214650982,2.72514292,68936.0,68935.0,0.31677849]
[1722214651146,2.72514292,68936.0,68935.0,0.17407849]
[1722214651532,2.87514292,68936.0,68935.0,0.17407849]
[1722214652152,2.77514292,68936.0,68935.0,0.17407849]
[1722214652525,2.87514292,68936.0,68935.0,0.17407849]
[1722214652929,2.87514292,68936.0,68935.0,0.14685566]
[1722214653135,2.77514292,68936.0,68935.0,0.14685566]
[1722214653885,2.58583148,68936.0,68935.0,0.14685566]
[1722214654084,2.64539818,68936.0,68935.0,0.14685566]
[1722214655985,2.97749718,68936.0,68935.0,0.14685566]
[1722214656186,2.91490576,68936.0,68935.0,0.14685566]
[1722214656389,2.97749718,68936.0,68935.0,0.14685566]
[1722214657125,2.9775913,68936.0,68935.0,0.14685566]
[1722214657279,2.97671556,68936.0,68935.0,0.14685566]
[1722214657480,2.91312414,68936.0,68935.0,0.14685566]
[1722214657681,2.91312414,68936.0,68935.0,0.12406776]
[1722214657887,2.97671556,68936.0,68935.0,0.12406776]
[1722214660295,2.90201164,68936.0,68935.0,0.12406776]
[1722214660494,2.91412592,68936.0,68935.0,0.12406776]
[1722214660800,2.91793048,68936.0,68935.0,0.12406776]
[1722214661059,1.63525607,68936.0,68935.0,0.12406776]
[1722214661246,7.00311249,68936.0,68935.0,0.12406776]
[1722214661594,6.87860607,68936.0,68935.0,0.12406776]
[1722214661759,6.74272107,68936.0,68935.0,0.12406776]
[1722214662169,6.41244907,68936.0,68935.0,0.12406776]
[1722214662594,6.49175538,68936.0,68935.0,0.12406776]
[1722214663131,5.91978838,68936.0,68935.0,0.12406776]
[1722214663247,6.31978838,68936.0,68935.0,0.12406776]
[1722214663651,6.31924171,68936.0,68935.0,0.12406776]
[1722214666110,6.25665029,68936.0,68935.0,0.12406776]
[1722214666336,6.31921486,68936.0,68935.0,0.12406776]
[1722214666957,6.31907345,68936.0,68935.0,0.12406776]
[1722214667165,6.25648203,68936.0,68935.0,0.12406776]
[1722214667497,6.31907345,68936.0,68935.0,0.12406776]
[1722214667726,6.67554767,68936.0,68929.0,0.04847443]
[1722214667944,1.54039442,68922.0,68921.0,1e-06]
[1722214668150,11.13595853,68922.0,68921.0,0.174115]
[1722214668365,11.29659533,68922.0,68921.0,0.145096]
[1722214668566,10.92288233,68922.0,68921.0,0.04068671]
[1722214668780,10.92288233,68922.0,68921.0,0.01849551]
[1722214668781,11.25069308,68922.0,68921.0,0.01849551]
[1722214668920,12.94688057,68922.0,68921.0,0.00915112]
[1722214669122,12.94688057,68922.0,68905.0,0.00908612]
[1722214669123,1.94069142,68906.0,68905.0,1.2e-07]
[1722214669327,1.94069142,68906.0,68892.0,0.008987]
[1722214669328,0.74420142,68893.0,68892.0,0.008987]
[1722214669547,0.74420142,68893.0,68892.0,0.299297]
[1722214669548,1.64010516,68893.0,68892.0,0.299297]
[1722214669752,5.31642916,68893.0,68892.0,0.299297]
[1722214669911,2.55339316,68893.0,68892.0,0.299297]
[1722214670122,1.73596016,68893.0,68892.0,0.299297]
[1722214670353,1.73848869,68893.0,68892.0,0.299297]
[1722214670550,1.77234423,68893.0,68892.0,0.299297]
[1722214670779,1.77234423,68893.0,68892.0,0.363997]
[1722214671153,1.79534423,68893.0,68892.0,0.363997]
[1722214671978,2.02758823,68893.0,68892.0,0.363997]
[1722214672609,2.05038836,68893.0,68892.0,0.363997]
[1722214672894,2.05016792,68893.0,68892.0,0.363997]
[1722214673097,1.95845874,68893.0,68892.0,0.363997]
[1722214673336,2.20016607,68893.0,68892.0,0.299297]
[1722214674100,2.23757465,68893.0,68892.0,0.299297]
[1722214674346,2.20016607,68893.0,68892.0,0.299297]
[1722214674575,1.80402428,68893.0,68892.0,0.299297]
[1722214676732,1.42592528,68893.0,68892.0,0.299297]
[1722214676992,8.06521118,68893.0,68892.0,0.299297]
[1722214677226,7.43342118,68893.0,68892.0,0.299297]
[1722214677470,7.29347428,68893.0,68892.0,0.299297]
[1722214677713,7.33088286,68893.0,68892.0,0.299297]
[1722214677946,5.99435928,68893.0,68892.0,0.299297]
[1722214679403,6.43622602,68893.0,68892.0,0.299297]
[1722214679639,6.43683484,68893.0,68892.0,0.299297]
[1722214680153,6.43662435,68893.0,68892.0,0.299297]
[1722214680414,6.33662435,68893.0,68892.0,0.299297]
[1722214680677,6.35942616,68893.0,68892.0,0.299297]
[1722214680918,2.55054273,68893.0,68892.0,0.299297]
[1722214681417,2.78278673,68893.0,68892.0,0.299297]
[1722214681662,2.65454792,68893.0,68892.0,0.299297]
[1722214684046,2.43749078,68893.0,68892.0,0.299297]
[1722214684278,2.43749078,68893.0,68892.0,0.376197]
[1722214684741,2.34517462,68893.0,68892.0,0.376197]
[1722214685010,2.34517462,68893.0,68892.0,0.299297]
[1722214685011,2.48664562,68893.0,68892.0,0.299297]
[1722214685244,2.71888962,68893.0,68892.0,0.299297]
[1722214685962,2.7562982,68893.0,68892.0,0.299297]
[1722214686224,2.81888962,68893.0,68892.0,0.299297]
[1722214686492,3.05113362,68893.0,68892.0,0.299297]
[1722214687463,2.71888962,68893.0,68892.0,0.299297]
[1722214687695,2.81888962,68893.0,68892.0,0.299297]
[1722214687961,2.72741862,68893.0,68892.0,0.299297]
[1722214688204,3.02710728,68893.0,68892.0,0.299297]
[1722214689877,3.17325625,68893.0,68892.0,0.183173]
[1722214690115,2.92710728,68893.0,68892.0,0.183173]
[1722214690349,6.47652428,68893.0,68892.0,0.183173]
[1722214690577,1.77189528,68893.0,68892.0,0.183173]
[1722214690840,7.35777048,68893.0,68892.0,0.183173]
[1722214691047,8.50675028,68893.0,68892.0,0.183173]
[1722214691248,8.43505059,68893.0,68892.0,0.183173]
[1722214691390,8.60400172,68893.0,68892.0,0.183173]
[1722214691585,8.43536629,68893.0,68892.0,0.183173]
[1722214691790,8.08026829,68893.0,68892.0,0.183173]
[1722214692129,7.75951529,68893.0,68892.0,0.183173]
[1722214693737,7.99175929,68893.0,68892.0,0.183173]
[1722214693952,7.75951529,68893.0,68892.0,0.038018]
[1722214694161,7.81776729,68893.0,68892.0,0.038018]
[1722214694375,0.39584542,68890.0,68889.0,0.008987]
[1722214694544,7.56633328,68890.0,68889.0,1e-06]
[1722214694743,7.27850228,68890.0,68889.0,0.261289]
[1722214694946,7.29019528,68890.0,68889.0,0.261289]
[1722214695144,7.14471528,68890.0,68889.0,0.261289]
[1722214695396,6.69725528,68890.0,68889.0,0.261289]
[1722214695817,6.69725528,68890.0,68889.0,0.174193]
[1722214695952,6.69725528,68890.0,68889.0,0.116129]
[1722214696151,6.72005895,68890.0,68889.0,0.116129]
[1722214697380,6.71750081,68890.0,68889.0,0.116129]
[1722214697605,6.07280781,68890.0,68889.0,0.116129]
[1722214697966,6.17280781,68890.0,68889.0,0.116129]
[1722214698811,6.07280781,68890.0,68889.0,0.116129]
[1722214699415,6.17280781,68890.0,68889.0,0.116129]
[1722214699619,6.47280781,68890.0,68889.0,0.116129]
[1722214700441,6.48140216,68890.0,68889.0,0.116129]
[1722214701074,6.48140216,68890.0,68889.0,0.176429]